[Event "Marmaris Karya-19 GM-May 2022"]
[Site "Icmeler-Marmaris"]
[Date "2022.05.15"]
[Round "1.1"]
[White "Caglar, Sila"]
[Black "Sevdimaliyev, Urfan"]
[Result "0-1"]
[ECO "B06"]
[WhiteElo "2133"]
[BlackElo "2331"]
[Annotator "TA"]
[PlyCount "86"]
[EventDate "2022.05.15"]
[EventType "schev"]
[EventCountry "TUR"]
[SourceTitle "playchess.com"]
[Source "ChessBase"]
[SourceQuality "1"]
[TimeControl "5400+30"]

{[%evp 11,86,18,20,8,22,25,24,7,41,22,23,32,83,93,99,85,129,47,56,68,49,36,37,0,45,27,36,22,30,0,31,27,29,31,19,20,23,0,3,22,14,24,59,0,27,-83,-70,-85,-73,-73,-81,-108,-106,-107,-112,-104,-107,-103,-89,-90,-92,-88,-84,-84,-92,-197,-181,-222,-223,-238,-213,-359,-359,-330,-235,-246,-232]} 1. e4 {[%emt 0:01:00]} c5 {[%emt 0:08:00]} 2. c3 {[%emt 0:00:00]} d5 {[%emt 0:00:00]} 3. exd5 {[%emt 0:00:00]} Qxd5 {[%emt 0:00:00]} 4. Nf3 {[%emt 0:00:30]} g6 {[%emt 0:01:30]} 5. Na3 {[%emt 0:01:30]} Bg7 {[%emt 0:01:30]} 6. d4 {[%emt 0:03:30]} cxd4 {[%emt 0:03:30]} 7. Nb5 {[%emt 0:05:30] B06: Modern Defence.} Na6 {[%emt 0:01:30] Prevents Nc7+.} 8. Nbxd4 {[%emt 0:00:30]} Nf6 {[%emt 0:15:30]} 9. Bb5+ {[%emt 0:10:30] White has an edge.} Nd7 {[%emt 0:07:30]} (9... Bd7 $5 {[%cal Rd7b5]} 10. Qe2 Bxb5 11. Nxb5 (11. Qxb5+ Qxb5 12. Nxb5 Nd5 $11) 11... O-O $11) 10. Qe2 {[%emt 0:02:30] Black should prevent Bg5.} O-O {[%emt 0:07:30]} 11. O-O {[%emt 0:06:30]} e5 {[%emt 0:02:30]} ({Black should play} 11... Ne5 $14) 12. Bc4 $16 {[%emt 0:00:30]} Qc5 {[%emt 0:15:30] [#]} 13. b4 $146 {[%emt 0:07:30]} ({Predecessor:} 13. Nb3 Qc7 14. Be3 Nb6 15. Bxb6 axb6 16. Rad1 Bg4 17. Bd5 Rad8 18. h3 Bf5 19. Rfe1 {0-1 (34) Coates,K (2242)-Tissir,M (2428) Sunningdale 2008}) 13... Qe7 {[%emt 0:06:30]} 14. Nb5 {[%emt 0:02:30]} ({Better is} 14. Bg5 $16 Qe8 15. Nb5) 14... Nb6 {[%emt 0:02:30]} 15. Bg5 {[%emt 0:02:30]} Qd7 {[%emt 0:04:30]} 16. Bb3 {[%emt 0:00:30]} Nc7 {[%emt 0:00:30]} 17. Na3 {[%emt 0:13:30]} Ne6 {[%emt 0:05:33]} 18. Rfd1 {[%emt 0:06:30] Prevents Nd5.} ({Much worse is} 18. Nxe5 Qc7 19. Nf3 (19. Bxe6 Bxe6 20. Rfe1 Rae8 $15) 19... Qxc3 $11) 18... Qe8 {[%emt 0:00:30]} 19. Rac1 {[%emt 0:09:30]} Bd7 {[%emt 0:05:57]} 20. c4 {[%emt 0:00:00]} (20. Be3 $5 {[%cal Rf3g5]}) 20... Bc6 {[%emt 0:01:41]} 21. Be3 {[%emt 0:03:00]} Nf4 {[%emt 0:01:46]} 22. Bxf4 {[%emt 0:04:12]} exf4 {[%emt 0:00:01]} 23. Qxe8 {[%emt 0:00:46]} Rfxe8 {[%emt 0:00:01]} 24. Nd4 {[%emt 0:00:10] Hoping for c5.} Ba4 {[%emt 0:02:41]} 25. Nab5 {[%emt 0:03:51] Strongly threatening Nc7.} Bxb3 {[%emt 0:01:07]} 26. Nxb3 {[%emt 0:00:06] Black must now prevent Nc7. Pair of Knights!} Re7 {[%emt 0:02:46] Inhibits Nc7.} 27. Nc5 {[%emt 0:02:34] Inhibits Na4.} (27. c5 $14 Na4 28. Kf1) 27... Be5 {[%emt 0:01:14]} 28. Nd6 {[%emt 0:02:49]} (28. h3 $11) 28... Bxd6 $17 {[%emt 0:00:19] Black converts the advantage convincingly.} 29. Rxd6 {[%emt 0:00:01] [#]} Nxc4 $1 {[%emt 0:00:40]} 30. Rd4 {[%emt 0:01:15]} Ne5 {[%emt 0:01:24]} 31. Rcd1 {[%emt 0:00:04]} f3 {[%emt 0:00:47]} 32. g3 {[%emt 0:02:03]} Nc6 {[%emt 0:00:38]} 33. Rf4 {[%emt 0:00:07]} b6 {[%emt 0:00:45]} 34. Nb3 {[%emt 0:02:39]} Re2 {[%emt 0:00:26]} 35. Rxf3 {[%emt 0:01:44]} Rxa2 {[%emt 0:00:28]} 36. b5 {[%emt 0:00:05]} Ne5 {[%emt 0:00:33]} 37. Re3 {[%emt 0:02:03]} Ng4 {[%emt 0:00:07][%csl LRe3,LRf2]} 38. Re7 {[%emt 0:00:05]} (38. Rf3 $17) 38... Nxf2 {[%emt 0:00:34]} ({And not} 38... Rxf2 39. Rd4 Rb2 40. Rxg4 Rxb3 41. Rf4) 39. Rdd7 {[%emt 0:00:09]} Nh3+ {[%emt 0:00:07]} 40. Kh1 {[%emt 0:00:06] [#]} Ng5 {[%emt 0:01:16] aiming for ...Nf3.} 41. Nd2 {[%emt 0:00:15] Prevents Nf3.} (41. Rd2 {keeps fighting.} Ra3 42. Rb2) 41... Rc8 $19 {[%emt 0:00:25]} 42. h4 {[%emt 0:01:52]} Rc1+ {[%emt 0:00:06]} 43. Kg2 {[%emt 0:00:03]} Rcc2 {[%emt 0:00:11] Weighted Error Value: White=0.24 (precise) /Black=0.11 (very precise)} 0-1

[Event "Marmaris Karya-19 GM-May 2022"]
[Site "Icmeler-Marmaris"]
[Date "2022.05.15"]
[Round "1.2"]
[White "Gunduz, Umut Erdem"]
[Black "Benidze, Davit"]
[Result "1/2-1/2"]
[ECO "B06"]
[WhiteElo "2316"]
[BlackElo "2425"]
[Annotator "TA"]
[PlyCount "96"]
[EventDate "2022.05.15"]
[EventType "schev"]
[EventCountry "TUR"]
[SourceTitle "playchess.com"]
[Source "ChessBase"]
[SourceQuality "1"]
[TimeControl "5400+30"]

{[%evp 10,96,72,54,96,62,66,54,58,60,68,55,111,88,97,87,85,87,93,77,95,98,125,95,81,52,59,53,54,59,59,59,59,64,64,27,18,19,22,22,91,23,22,27,25,24,24,24,24,21,21,9,39,24,24,20,20,10,54,55,36,0,0,0,0,0,8,6,6,6,6,0,0,0,0,0,0,0,6,0,0,0,0,0,0,0,0,0,0]} 1. e4 {[%emt 0:01:00]} c6 {[%emt 0:01:00]} 2. d4 {[%emt 0:00:30]} d5 {[%emt 0:00:30]} 3. Nd2 {[%emt 0:00:30]} g6 {[%emt 0:00:00]} 4. Ngf3 {[%emt 0:01:30]} Bg7 {[%emt 0:00:00]} 5. Bd3 {[%emt 0:01:30]} Bg4 {[%emt 0:03:30]} 6. e5 {[%emt 0:05:30]} Nh6 {[%emt 0:06:30][%cal Oc6c5] B06: Modern Defence.} 7. h3 {[%emt 0:00:30]} Bf5 {[%emt 0:00:30]} 8. Bxf5 {[%emt 0:00:30]} Nxf5 {[%emt 0:00:30] White is slightly better.} 9. g4 {[%emt 0:00:30]} Nh6 {[%emt 0:00:30] [#]} 10. Nb3 $146 {[%emt 0:03:30]} ({Predecessor:} 10. Nf1 O-O 11. Ng3 f6 12. e6 Qd6 13. Qe2 Na6 14. O-O Kh8 15. c3 c5 16. dxc5 Nxc5 {1-0 (22) Hock,M-Satkowski,P GER corr 1997}) 10... Na6 {[%emt 0:04:30]} (10... Nd7 $14) 11. Bf4 {[%emt 0:08:30]} Qd7 {[%emt 0:15:30]} 12. Qd2 {[%emt 0:01:30]} Ng8 {[%emt 0:01:30]} 13. O-O-O {[%emt 0:01:30]} e6 {[%emt 0:01:30]} 14. Ne1 {[%emt 0:03:30]} h6 {[%emt 0:04:30]} 15. Nd3 {[%emt 0:03:30]} Ne7 {[%emt 0:00:30]} 16. h4 {[%emt 0:05:30]} h5 {[%emt 0:01:30]} 17. gxh5 {[%emt 0:03:30]} Rxh5 {[%emt 0:15:30]} 18. Bg5 {[%emt 0:00:30]} O-O-O {[%emt 0:00:30]} 19. Qa5 {[%emt 0:06:30]} Bh6 {[%emt 0:06:30]} 20. Bxh6 {[%emt 0:03:30]} Rxh6 {[%emt 0:00:00]} 21. Ndc5 {[%emt 0:04:30]} Qc7 {[%emt 0:00:00] [#] Hoping for ...Qxa5.} 22. Nxa6 {[%emt 0:00:30][%csl Ga6][%cal Ra5c7] White is more active.} Qxa5 {[%emt 0:00:30]} 23. Nxa5 {[%emt 0:00:30]} bxa6 {[%emt 0:00:30]} 24. Rh3 {[%emt 0:09:30]} Kc7 {[%emt 0:15:30] [#]} (24... Rh5 $11 {remains equal.}) 25. Rb3 {[%emt 0:00:30]} ({Better is} 25. Nb3 $1 $16) 25... Rb8 $11 {[%emt 0:00:30]} 26. Rxb8 {[%emt 0:00:30]} Kxb8 {[%emt 0:00:30][%mdl 4096] Endgame KRN-KRN} 27. Rd3 {[%emt 0:00:30]} Rxh4 {[%emt 0:00:30]} 28. Rb3+ {[%emt 0:00:30]} Kc8 {[%emt 0:09:51]} 29. Rb7 {[%emt 0:00:00]} Nf5 {[%emt 0:00:07]} 30. Rxf7 {[%emt 0:03:00]} Rh1+ {[%emt 0:01:35]} ({Resist} 30... Nxd4 31. c3 Rh1+ 32. Kd2 $16) 31. Kd2 {[%emt 0:00:30]} Rh2 {[%emt 0:00:01]} ({Much less strong is} 31... Nxd4 32. c3 Nf5 33. Nxc6 $16) 32. Nxc6 {[%emt 0:05:30] Threatens to win with Ke2.} Rxf2+ {[%emt 0:00:05]} 33. Kc3 {[%emt 0:01:30] Ne7+ is the strong threat.} Rf3+ {[%emt 0:00:49]} 34. Kb4 $1 {[%emt 0:01:30]} Nxd4 $1 {[%emt 0:00:05]} 35. Rxf3 {[%emt 0:01:30]} Nxf3 $14 {[%emt 0:00:01] KN-KN. The position is equal.} 36. Ne7+ {[%emt 0:00:00]} Kc7 {[%emt 0:04:47]} 37. Nxg6 {[%emt 0:03:00]} Kc6 {[%emt 0:01:26]} 38. Nf8 {[%emt 0:04:57]} Nxe5 {[%emt 0:01:42]} 39. Nxe6 {[%emt 0:00:03]} Nc4 {[%emt 0:01:07]} 40. Nd4+ {[%emt 0:01:41]} Kb6 {[%emt 0:00:10]} 41. b3 {[%emt 0:00:12]} a5+ {[%emt 0:00:06]} 42. Kc3 {[%emt 0:00:21]} Ne5 {[%emt 0:00:55]} 43. Ne6 {[%emt 0:02:48]} Nc6 {[%emt 0:01:44]} 44. Nf4 {[%emt 0:03:23]} Kc5 {[%emt 0:01:27]} 45. Nd3+ {[%emt 0:00:05]} Kd6 {[%emt 0:00:13]} 46. a3 {[%emt 0:00:36]} Kc7 {[%emt 0:00:27]} 47. b4 {[%emt 0:01:22]} axb4+ {[%emt 0:00:31]} 48. axb4 {[%emt 0:00:25]} a5 {[%emt 0:00:46] Weighted Error Value: White=0.09 (flawless) /Black=0.10 (very precise)} 1/2-1/2

[Event "Marmaris Karya-19 GM-May 2022"]
[Site "Icmeler-Marmaris"]
[Date "2022.05.15"]
[Round "1.3"]
[White "Ozsakallioglu, Okan"]
[Black "Toufighi, Homayoon"]
[Result "1/2-1/2"]
[ECO "C10"]
[WhiteElo "2312"]
[BlackElo "2439"]
[Annotator "TA"]
[PlyCount "100"]
[EventDate "2022.05.15"]
[EventType "schev"]
[EventCountry "TUR"]
[SourceTitle "playchess.com"]
[Source "ChessBase"]
[SourceQuality "1"]
[TimeControl "5400+30"]

{[%evp 9,100,61,50,36,47,20,22,22,31,10,14,0,16,13,35,0,41,52,40,33,44,35,58,66,39,37,31,11,19,8,19,0,4,3,6,12,0,0,0,0,17,22,16,0,20,18,29,19,43,37,43,35,35,35,38,38,56,12,13,13,35,35,36,36,36,8,8,13,50,50,50,50,50,0,0,0,190,44,47,66,231,231,415,416,512,108,108,108,108,50,50,8,8]} 1. e4 {[%emt 0:01:00]} e6 {[%emt 0:01:00]} 2. d4 {[%emt 0:00:30]} d5 {[%emt 0:00:30]} 3. Nd2 {[%emt 0:00:00]} dxe4 {[%emt 0:00:30]} 4. Nxe4 {[%emt 0:00:00]} Bd7 {[%emt 0:00:30][%cal Bc8d7,Bd7c6,Bc6e4][%mdl 32]} 5. Nf3 {[%emt 0:01:30]} Bc6 {[%emt 0:00:00]} 6. Ned2 {[%emt 0:00:00] C10: French with 3 Nc3: Unusual Black 3rd moves and 3...dxe4.} Nd7 {[%emt 0:00:00] 6...Nd7 is better than 6...Nf6.} 7. Be2 {[%emt 0:06:00]} Ngf6 {[%emt 0:00:30]} 8. O-O {[%emt 0:00:30]} Be7 {[%emt 0:03:30]} 9. Nc4 {[%emt 0:00:00] [#]} Be4 $146 {[%emt 0:06:30]} ({Predecessor:} 9... Bb5 10. a4 Bxc4 11. Bxc4 a5 12. Qe2 O-O 13. Re1 Re8 14. Bf4 Nd5 15. Bg3 c6 {1-0 (36) Robson,R (2667)-Haria,R (2450) Chess.com INT 2019}) 10. Ncd2 {[%emt 0:05:00]} Bg6 {[%emt 0:01:30]} 11. Nh4 {[%emt 0:00:30]} c6 {[%emt 0:00:30]} 12. Nc4 {[%emt 0:00:30]} Nd5 {[%emt 0:00:30]} 13. Nxg6 {[%emt 0:00:30]} hxg6 {[%emt 0:00:30]} 14. Bf3 {[%emt 0:00:30]} N7b6 {[%emt 0:02:30]} 15. Ne5 {[%emt 0:06:30]} Bg5 {[%emt 0:04:30]} 16. g3 {[%emt 0:05:30]} Bxc1 {[%emt 0:01:30]} 17. Qxc1 {[%emt 0:01:30]} Nd7 {[%emt 0:10:30]} 18. c4 {[%emt 0:04:30]} Ne7 {[%emt 0:02:30]} 19. Qf4 {[%emt 0:03:30][%csl Ge5][%cal Rf4f7]} Nxe5 {[%emt 0:06:30]} 20. dxe5 {[%emt 0:00:30]} O-O {[%emt 0:00:30]} 21. Rfd1 {[%emt 0:00:30]} Qc7 {[%emt 0:00:30]} 22. b4 {[%emt 0:00:30]} Rad8 {[%emt 0:04:30]} 23. h4 {[%emt 0:15:30]} Rxd1+ {[%emt 0:00:30]} 24. Rxd1 {[%emt 0:00:30]} Rd8 {[%emt 0:00:00] Against Qd4} 25. Rxd8+ {[%emt 0:08:30]} Qxd8 $11 {[%emt 0:00:00][%mdl 4096] Endgame KQB-KQN} 26. Qe3 {[%emt 0:00:00]} b6 {[%emt 0:00:30]} 27. g4 {[%emt 0:08:00]} Qd7 {[%emt 0:00:30]} (27... b5 {looks sharper.} 28. cxb5 cxb5 29. Qxa7 Qd3) 28. Kg2 {[%emt 0:00:30]} Kf8 {[%emt 0:00:30]} 29. a4 {[%emt 0:00:30]} Qd8 {[%emt 0:00:30]} 30. b5 {[%emt 0:00:30]} cxb5 {[%emt 0:00:30]} 31. axb5 {[%emt 0:00:30]} Qc7 {[%emt 0:00:30]} 32. Qd4 {[%emt 0:06:30] Threatens to win with Qd6.} Ke8 {[%emt 0:08:30]} 33. Be2 {[%emt 0:07:05]} Qb7+ {[%emt 0:00:00]} 34. Kg3 {[%emt 0:00:50]} Qc7 {[%emt 0:00:00]} 35. Kf3 {[%emt 0:00:30]} Qb7+ {[%emt 0:07:30]} 36. Qe4 {[%emt 0:04:17]} Qc8 {[%emt 0:04:30]} 37. Bd3 {[%emt 0:00:23]} a5 {[%emt 0:01:30]} 38. Qd4 {[%emt 0:02:12]} Qc5 {[%emt 0:02:30]} 39. Ke3 {[%emt 0:01:08]} a4 {[%emt 0:09:30]} 40. Qxc5 {[%emt 0:03:13]} bxc5 $14 {[%emt 0:00:30] KB-KN} 41. Bc2 {[%emt 0:00:37]} (41. Kd2 $14) 41... a3 $11 {[%emt 0:00:30]} 42. Bb1 {[%emt 0:00:17]} Nc8 $2 {[%emt 0:00:00] [#]} (42... g5 $11 {and Black is okay.} 43. h5 (43. hxg5 Kd7 $11) 43... Nc8) 43. Kd3 $1 $18 {[%emt 0:00:27] Kc3 is the strong threat.} Nb6 $1 {[%emt 0:00:00]} 44. Kc3 {[%emt 0:00:17]} Ke7 $2 {[%emt 0:02:30]} ({Black should play} 44... Na4+ $1 $14 45. Kc2 (45. Kb3 Nb2 $11) 45... Nb2) 45. Kb3 {[%emt 0:01:14]} f6 $2 {[%emt 0:03:09]} (45... Kd7 46. f4 Kc8) 46. exf6+ {[%emt 0:06:47]} Kxf6 {[%emt 0:00:15] [#]} 47. f4 {[%emt 0:00:08] Against g5} (47. g5+ $1 $18 Ke5 48. Bxg6 (48. Kxa3 Kf4 $16)) 47... e5 $16 {[%emt 0:00:15]} 48. g5+ {[%emt 0:01:12]} ({Don't play} 48. Kxa3 $6 exf4 49. g5+ Ke5 $11) 48... Ke6 {[%emt 0:00:21]} 49. fxe5 {[%emt 0:00:34]} ({White should try} 49. Bxg6 $16 {And now f5+ would win.} exf4 50. Bd3) 49... Kxe5 $14 {[%emt 0:00:30]} 50. Kxa3 {[%emt 0:01:11] Hoping for Kb3.} Kf4 {[%emt 0:03:34] Weighted Error Value: White=0.27 (precise) /Black=0.26 (precise)} 1/2-1/2

[Event "Marmaris Karya-19 GM-May 2022"]
[Site "Icmeler-Marmaris"]
[Date "2022.05.15"]
[Round "1.4"]
[White "Darban, Morteza"]
[Black "Maghalashvili, Davit"]
[Result "1/2-1/2"]
[ECO "B52"]
[WhiteElo "2279"]
[BlackElo "2456"]
[Annotator "TA"]
[PlyCount "60"]
[EventDate "2022.05.15"]
[EventType "schev"]
[EventCountry "TUR"]
[SourceTitle "playchess.com"]
[Source "ChessBase"]
[SourceQuality "1"]
[TimeControl "5400+30"]

{[%evp 22,60,-10,-12,0,0,0,-7,0,-6,31,28,56,46,34,35,56,17,54,41,79,89,116,58,82,29,35,41,47,37,53,37,54,35,27,0,75,0,36,0,44]} 1. e4 {[%emt 0:01:00]} c5 {[%emt 0:01:00]} 2. Nf3 {[%emt 0:00:30]} d6 {[%emt 0:00:30]} 3. Bb5+ {[%emt 0:00:00]} Bd7 {[%emt 0:00:30]} 4. Bxd7+ {[%emt 0:00:00]} Qxd7 {[%emt 0:02:30]} 5. O-O {[%emt 0:00:00]} Nf6 {[%emt 0:01:30]} 6. Re1 {[%emt 0:00:00]} Nc6 {[%emt 0:01:30]} 7. c3 {[%emt 0:00:00]} e6 {[%emt 0:00:30]} 8. d4 {[%emt 0:00:00]} cxd4 {[%emt 0:00:00]} 9. cxd4 {[%emt 0:00:00]} d5 {[%emt 0:00:00]} 10. e5 {[%emt 0:00:00]} Ne4 {[%emt 0:00:30]} 11. a3 {[%emt 0:00:30]} Be7 {[%emt 0:00:30]} 12. Qd3 {[%emt 0:00:00]} O-O {[%emt 0:01:30] B52: Sicilian: Moscow Variation with 3...Bd7.} 13. Nbd2 {[%emt 0:00:00]} Nxd2 {[%emt 0:00:30]} 14. Bxd2 {[%emt 0:01:30]} Rac8 {[%emt 0:05:30]} 15. h4 {[%emt 0:00:30]} f5 {[%emt 0:01:30]} 16. exf6 {[%emt 0:00:30]} Bxf6 {[%emt 0:04:30]} 17. Re2 {[%emt 0:05:30]} Qf7 {[%emt 0:08:30]} 18. Rae1 {[%emt 0:05:30]} Rce8 {[%emt 0:00:00] [#]} 19. g3 $146 {[%emt 0:02:30]} ({Predecessor:} 19. b4 a6 20. a4 b5 21. axb5 axb5 22. Bc3 Na7 23. g3 Nc8 24. Qxb5 Nd6 25. Qd3 {1-0 (46) Hilwerda,J (2263)-Klaren,D (1964) Borne 2019}) 19... Qh5 {[%emt 0:07:00]} 20. Bc3 {[%emt 0:05:30]} Qg4 {[%emt 0:01:30]} 21. Kg2 {[%emt 0:00:30]} Re7 {[%emt 0:01:30] [#]} 22. Re3 {[%emt 0:05:30]} (22. Rxe6 $3 $16 {[%mdl 512]} Rxe6 23. Nh2) 22... Rfe8 {[%emt 0:05:30] [#]} 23. Nh2 {[%emt 0:06:30]} (23. b4 $1 $16) 23... Qf5 $11 {[%emt 0:00:30]} 24. Qd1 {[%emt 0:00:30]} Qg6 {[%emt 0:00:30]} 25. Nf3 {[%emt 0:13:30]} Qf5 {[%emt 0:07:30]} 26. Qe2 {[%emt 0:00:30]} Qg4 {[%emt 0:00:30]} 27. Qd3 {[%emt 0:00:30]} Qf5 {[%emt 0:00:00]} 28. Qe2 {[%emt 0:00:30]} (28. Qd1 $11 {is more appropriate.}) 28... Qg4 $16 {[%emt 0:00:00]} 29. Qd3 {[%emt 0:00:00]} Qf5 $1 {[%emt 0:00:00]} 30. Qe2 {[%emt 0:00:00]} Qg4 {[%emt 0:01:00] Weighted Error Value: White=0.16 (very precise) /Black=0.13 (very precise)} 1/2-1/2

[Event "Marmaris Karya-19 GM-May 2022"]
[Site "Icmeler-Marmaris"]
[Date "2022.05.15"]
[Round "1.5"]
[White "Ozdemir, Serhan Berat"]
[Black "Gholami, Aryan"]
[Result "0-1"]
[ECO "B28"]
[WhiteElo "2117"]
[BlackElo "2530"]
[Annotator "TA"]
[PlyCount "130"]
[EventDate "2022.05.15"]
[EventType "schev"]
[EventCountry "TUR"]
[SourceTitle "playchess.com"]
[Source "ChessBase"]
[SourceQuality "1"]
[TimeControl "5400+30"]

{[%evp 10,130,41,22,35,7,41,30,32,32,38,0,15,0,0,7,13,0,71,0,0,0,0,-6,0,-15,0,-15,-12,-66,-57,-88,-41,-55,-60,-93,0,0,0,0,0,0,0,0,0,0,0,0,0,-47,-59,-58,-70,-54,-41,-177,-155,-244,-242,-236,-231,-225,-235,-338,-331,-354,-358,-362,-354,-359,-354,-412,-276,-529,-532,-508,-508,-457,-349,-355,-305,-280,-53,-53,382,-22,-29,-77,-54,-259,-260,-354,-354,-326,-332,-310,-237,-326,-298,-295,-297,-300,-300,-287,-287,-298,-294,-331,-263,-287,-287,-287,-273,-284,-275,-287,-268,-362,-247,-355,-347,-948,-923]} 1. e4 {[%emt 0:01:00]} c5 {[%emt 0:01:00]} 2. Nf3 {[%emt 0:00:30]} a6 {[%emt 0:00:00]} 3. c3 {[%emt 0:08:30]} Nf6 {[%emt 0:03:00]} 4. e5 {[%emt 0:00:30]} Nd5 {[%emt 0:00:30]} 5. d4 {[%emt 0:00:30]} cxd4 {[%emt 0:00:30]} 6. cxd4 {[%emt 0:00:30]} e6 {[%emt 0:02:30] B28: Sicilian: 2 Nf3 a6 (O'Kelly Variation).} 7. a3 {[%emt 0:06:30]} b5 8. Bd3 {[%emt 0:00:30]} Bb7 {White has an edge.} 9. O-O {[%emt 0:00:30]} d6 {[#]} 10. Re1 $146 {[%emt 0:07:30]} ({Predecessor:} 10. Qe2 Qc7 11. Bd2 Nc6 12. Nc3 Nxc3 13. Bxc3 dxe5 14. Nxe5 Bd6 15. Rac1 Qe7 16. Rfd1 {1-0 (26) Woodhouse,S (1736)-Dunn,J (1616) ICCF email 2015}) 10... Be7 {[%emt 0:08:00]} 11. Nbd2 {[%emt 0:02:30]} dxe5 {[%emt 0:06:30]} 12. Nxe5 {[%emt 0:02:30]} Nc6 {[%emt 0:02:30]} 13. Ndf3 {[%emt 0:06:30]} O-O {[%emt 0:03:30]} (13... Nxe5 $11 14. dxe5 Qd7) 14. Qe2 {[%emt 0:10:30]} (14. Nxc6 $16 Bxc6 15. Qc2) 14... Rc8 $11 {[%emt 0:01:30]} 15. Bd2 $1 {[%emt 0:01:30]} Nf6 {[%emt 0:01:30]} 16. Be3 {[%emt 0:00:30]} Qd5 {[%emt 0:03:30]} 17. Rad1 {[%emt 0:17:30]} Rfd8 {[%emt 0:00:30]} 18. Bb1 {[%emt 0:00:30]} Na5 {[%emt 0:06:30]} 19. Nd3 {[%emt 0:03:30]} (19. Bg5 $11) 19... Qh5 $1 $15 {[%emt 0:02:30]} 20. Nf4 {[%emt 0:06:30]} Qg4 {[%emt 0:00:30]} ({Black should play} 20... Bxf3 $17 21. gxf3 Qg5+ 22. Ng2 Qd5) 21. d5 {[%emt 0:00:30]} Nxd5 {[%emt 0:00:30]} 22. Bxh7+ {[%emt 0:00:30]} Kxh7 {[%emt 0:00:30]} (22... Kf8 $1 $17 23. Rd4 Nxf4 24. Rxf4 Bxf3 $1 25. Rxf3 Qc4) 23. Nxd5 $11 {[%emt 0:00:30]} Bxd5 {[%emt 0:00:30]} 24. Ng5+ {[%emt 0:09:06][%mdl 64] Discovered Attack, Decoy} Qxg5 $1 {[%emt 0:05:30]} 25. Bxg5 {[%emt 0:00:03]} Bxg5 $40 {[%emt 0:00:00][%cal Be7g5,Bg5h6,Bh6f4,Bf4d2,Bd2c3,Bc3f6][%mdl 160] Black has some attack.} 26. Qh5+ {[%emt 0:00:23]} Bh6 {[%emt 0:00:00]} 27. Qxf7 {[%emt 0:02:22][%cal Od1d5]} Rf8 {[%emt 0:00:30]} 28. Qe7 {[%emt 0:02:19]} Rf6 {[%emt 0:00:30]} 29. b4 {[%emt 0:03:15]} (29. g3 $11 {deserves consideration.}) 29... Nc4 $15 {[%emt 0:00:30][%mdl 1024] Black has compensation.} 30. Rd3 {[%emt 0:00:30]} Rcf8 {[%emt 0:00:30]} 31. f3 {[%emt 0:00:30]} Bf4 {[%emt 0:00:30]} 32. Qa7 {[%emt 0:00:30]} (32. Qc5 $1 $15) 32... Ne5 $1 $19 {[%emt 0:00:30]} 33. Rc3 {[%emt 0:04:55]} (33. Rxe5 $17 Bxe5 34. Qxa6) 33... Bd2 {[%emt 0:09:30][%csl LRc3,LRe1] A strong pair of Bishops.} 34. Rxe5 {[%emt 0:02:35]} Bxc3 {[%emt 0:00:30]} 35. Rg5 {[%emt 0:00:22][%csl Gg5][%cal Ra7g7]} R6f7 {[%emt 0:01:30]} 36. Qe3 {[%emt 0:00:33]} (36. Qb6 $142) 36... Bf6 {[%emt 0:02:30]} 37. Rh5+ {[%emt 0:00:09]} Kg8 {[%emt 0:00:00]} 38. Qd3 {[%emt 0:00:05][%csl Gh5][%cal Rd3h7]} Rd7 {[%emt 0:01:00]} 39. h4 {[%emt 0:00:59]} Kf7 {[%emt 0:04:30]} 40. Rh7 {[%emt 0:00:26]} e5 {[%emt 0:01:30]} 41. h5 $2 {[%emt 0:00:27]} (41. Qf5 Ke7 42. Qg6) 41... e4 {[%emt 0:00:30]} 42. fxe4 {[%emt 0:00:09]} Be6 {[%emt 0:00:30]} 43. Qg3 {[%emt 0:00:11]} Bd4+ {[%emt 0:00:30]} 44. Kh2 {[%emt 0:00:26]} Kg8 {[%emt 0:01:30] White must now prevent ...Rf1. Really sharp! Active counter play!} 45. Rh6 {[%emt 0:00:04]} Bf7 {[%emt 0:00:30]} ({Black should try} 45... Re8 $19 46. Qg5 (46. Qg6 $2 Be5+ 47. Kg1 Bf7 $19) 46... Bf7) 46. Rd6 $15 {[%emt 0:01:34] [#]} Rfd8 {[%emt 0:00:30][%mdl 8192] [#]} (46... Bf2 $1 $15 {stays ahead.} 47. Qf4 (47. Qd3 Bc4) 47... Bxh5 $1 48. Qxf8+ Kxf8 49. Rxd7 Be3 50. Rd8+ Ke7) 47. Rxd7 $2 {[%emt 0:00:25]} (47. Rxd4 $1 $18 {[%cal Oh5h6][%mdl 512] aiming for h6!} Rxd4 48. h6) 47... Rxd7 $11 {[%emt 0:00:00]} 48. h6 {[%emt 0:00:50]} (48. Qb8+ $1 $11 Kh7 49. Qc8) 48... Re7 {[%emt 0:00:00]} (48... g6 $5 {[%cal Rg8h7]} 49. Qg4 Re7 50. Qc8+ Kh7 51. Qxa6 Be8 $17) 49. Qg4 $2 {[%emt 0:00:14] [#] Black converts the advantage convincingly.} ({Better is} 49. Qb8+ $15 Be8 50. Qa8 (50. Qd8 Be5+ 51. g3 Bf6 $17) 50... Be5+ 51. g3) 49... Re6 $1 $19 {[%emt 0:00:30]} 50. g3 {[%emt 0:00:51]} Rxh6+ {[%emt 0:00:30]} 51. Kg2 {[%emt 0:00:04]} Be6 {[%emt 0:00:00] Prevents Qc8+.} 52. Qg5 {[%emt 0:00:26] And now Qd8+ would win.} Rf6 {[%emt 0:01:00]} 53. g4 {[%emt 0:00:18]} Kf7 {[%emt 0:01:30]} 54. Kg3 {[%emt 0:01:31]} Rg6 {[%emt 0:01:30]} 55. Qf4+ {[%emt 0:00:04]} Bf6 {[%emt 0:00:00]} 56. Qc7+ {[%emt 0:00:06]} Be7 {[%emt 0:00:00]} 57. Qf4+ {[%emt 0:00:14]} Kg8 {[%emt 0:01:30]} 58. Qb8+ {[%emt 0:00:14]} Bf8 {[%emt 0:00:00]} 59. Qe8 {[%emt 0:00:54]} Rxg4+ {[%emt 0:00:00]} 60. Kf3 {[%emt 0:00:06]} Bf7 {[%emt 0:00:00]} 61. Qc8 {[%emt 0:00:25]} Rg6 {[%emt 0:00:00]} 62. Kf4 {[%emt 0:00:13]} Rf6+ {[%emt 0:00:30]} 63. Ke5 {[%emt 0:01:04]} Re6+ {[%emt 0:00:00]} 64. Kd4 {[%emt 0:00:07]} (64. Kf4 {is a better defense.}) 64... g5 {[%emt 0:00:00][%cal Bg7g5,Bg5g4][%mdl 32]} 65. e5 $2 {[%emt 0:00:10]} (65. Ke3) 65... g4 {[%emt 0:00:30] Weighted Error Value: White=0.50/Black=0.33} 0-1